lending/lending_fUSD_20240604
["ID","MTS","AMOUNT","RATE_DAILY","PERIOD"]
[328535559,1717505432051,-800.07111468,0.00014,2]
[328535561,1717505432062,-36079.91038,0.00014,2]
[328535564,1717505432074,-371.6925449,0.00014,2]
[328535566,1717505432090,-2784.48495281,0.00014,2]
[328535623,1717505437650,-203578.87411436,0.00014,2]
[328535624,1717505437747,-875.33626534,0.00014,2]
[328535625,1717505437759,-13169.08291731,0.00014,2]
[328535626,1717505437771,-267.4029094,0.00014,2]
[328535627,1717505437783,-1189.95168107,0.00014,2]
[328535628,1717505437794,-1336.77449173,0.00014,2]
[328535629,1717505437806,-1291.06,0.00014,2]
[328535630,1717505437851,-545.03939917,0.00014,2]
[328535631,1717505437864,-19057.47486926,0.00014,2]
[328535632,1717505437875,-476.54576623,0.00014,2]
[328535633,1717505437887,-873.81182588,0.00014,2]
[328535634,1717505437899,-1171.11856861,0.00014,2]
[328535635,1717505437910,-52989.83884914,0.00014,2]
[328535636,1717505437923,-272.29912267,0.00014,2]
[328535637,1717505437986,-396.96657,0.00014,2]
[328535638,1717505437998,-24121.8437193,0.00014,2]
[328535639,1717505438009,-368.4034386,0.00014,2]
[328535660,1717505440265,-53200.91118614,0.00014,2]
[328535661,1717505440293,-5341.56197791,0.00014,2]
[328535662,1717505440407,-31086.98811371,0.00014,2]
[328535663,1717505440444,-12558.405928,0.00014,2]
[328535664,1717505440563,-3174.82,0.00014,2]
[328535679,1717505442749,-628.18,0.00014,2]
[328535680,1717505442776,-378.703701,0.00014,2]
[328535681,1717505442884,-1218761.37978331,0.00014,2]
[328535682,1717505442893,-250.0,0.00014037,2]
[328535683,1717505442904,-161.43246097,0.00014168,2]
[328535684,1717505442914,-150.0,0.00014264,2]
[328535685,1717505442924,-330.84,0.00014268,2]
[328535686,1717505442934,-250.0,0.00014385,2]
[328535687,1717505442943,-1039.41123618,0.00015355,2]
[328535688,1717505442952,-156.89,0.00015403,2]
[328535689,1717505442961,-156.89,0.00015457,2]
[328535690,1717505442971,-156.89,0.0001551,2]
[328535691,1717505442980,-156.89,0.00015564,2]
[328535692,1717505442989,-156.89,0.00015617,2]
[328535693,1717505442998,-156.89,0.00015671,2]
[328535694,1717505443009,-156.89,0.00015724,2]
[328535695,1717505443018,-156.89,0.00015778,2]
[328535696,1717505443026,-156.89,0.00015831,2]
[328535697,1717505443036,-156.89,0.00015885,2]
[328535698,1717505443045,-156.89,0.00015938,2]
[328535699,1717505443054,-174.43,0.0001594,2]
[328535700,1717505443065,-156.89,0.00015992,2]
[328535701,1717505443073,-156.89,0.00016045,2]
[328535702,1717505443083,-156.89,0.00016099,2]
[328535703,1717505443092,-156.89,0.00016152,2]
[328535704,1717505443102,-156.89,0.00016206,2]
[328535705,1717505443112,-330.84,0.00016532,2]
[328535706,1717505443122,-1039.41123618,0.00016809,2]
[328535707,1717505443132,-982.45,0.00017193,2]
[328535708,1717505443142,-5665.12353146,0.00017225,2]
[328535709,1717505443152,-1324.59095219,0.00017259,2]
[328535710,1717505443161,-1039.41123618,0.00018264,2]
[328535711,1717505443171,-330.84,0.00018796,2]
[328535712,1717505443180,-1039.41123618,0.00019718,2]
[328535713,1717505443189,-982.45,0.00019932,2]
[328535714,1717505443198,-330.84,0.0002106,2]
[328535715,1717505443207,-3318.0,0.000211,3]
[328535716,1717505443217,-716.0,0.000211,3]
[328535717,1717505443226,-1039.41123618,0.00021173,2]
[328535718,1717505443236,-12903.27,0.00021296,2]
[328535719,1717505443247,-164.7,0.00021918,2]
[328535720,1717505443258,-156.01882306,0.00022499,2]
[328535721,1717505443270,-1039.41123618,0.00022627,2]
[328535722,1717505443279,-982.45,0.00022672,2]
[328535723,1717505443289,-171.05,0.00022911,2]
[328535724,1717505443298,-353.49546131,0.00023043,2]
[328535725,1717505443307,-330.84,0.00023323,2]
[328535726,1717505443317,-1039.41123618,0.00024082,2]
[328535728,1717505443326,-150.79,0.00024384,2]
[328535730,1717505443336,-705.76957178,0.00025,2]
[328535732,1717505443345,-353.49546131,0.00025329,2]
[328535734,1717505443354,-1039.41123618,0.00025536,2]
[328535736,1717505443365,-330.84,0.00025587,2]
[328535738,1717505443374,-1039.41123618,0.00026991,2]
[328535740,1717505443383,-408.07,0.00027285,2]
[328535742,1717505443393,-1000.0,0.00027379,2]
[328535744,1717505443402,-169.502,0.00027404,2]
[328535746,1717505443411,-2121.0,0.00027404,2]
[328535748,1717505443420,-612.0,0.00027404,2]
[328535750,1717505443429,-353.49546131,0.00027614,2]
[328535752,1717505443438,-330.84,0.00027851,2]
[328535754,1717505443447,-987.89706,0.0002791,2]
[328535756,1717505443456,-500.0,0.00028,2]
[328535758,1717505443466,-4748.0855,0.00028088,2]
[328535760,1717505443475,-696.0995,0.00028088,2]
[328535762,1717505443484,-487.31411409,0.00028187,5]
[328535764,1717505443495,-289.66478697,0.00028188,2]
[328535766,1717505443504,-181.09443251,0.00028188,2]
[328535769,1717505443519,-155.0,0.00028188,2]
[328535771,1717505443531,-333.17681456,0.00028188,2]
[328535773,1717505443543,-150.0,0.00028444,2]
[328535776,1717505443555,-1039.41123618,0.00028445,2]
[328535778,1717505443566,-150.0,0.00028819,2]
[328535780,1717505443579,-25255.11288061,0.00029,7]
[328535782,1717505443591,-5000.0,0.00029,2]
[328535784,1717505443602,-150.0,0.00029005,2]
[328535787,1717505443612,-150.0,0.00029044,2]
[328535789,1717505443622,-150.0,0.00029053,2]
[328535791,1717505443632,-150.0,0.00029097,2]
[328535793,1717505443643,-150.0,0.00029123,2]
[328535795,1717505443654,-150.0,0.00029219,2]
[328535797,1717505443665,-150.0,0.00029292,2]
[328535799,1717505443676,-341.0,0.00029296,5]
[328535802,1717505443687,-152.68220394,0.00029314,2]
[328535804,1717505443697,-157.65408137,0.00029315,2]
[328535806,1717505443708,-154.862648,0.00029329,2]
[328535808,1717505443719,-155.60878549,0.0002933,2]
[328535810,1717505443730,-150.0,0.00029339,2]
[328535813,1717505443742,-154.862648,0.00029346,2]
[328535815,1717505443752,-150.0,0.00029349,2]
[328535817,1717505443762,-152.68220394,0.00029399,2]
[328535819,1717505443773,-154.862648,0.00029416,2]
[328535821,1717505443787,-152.68220394,0.00029441,2]
[328535823,1717505443799,-197.86100926,0.00029465,2]
[328535826,1717505443810,-154.3225918,0.00029498,2]
[328535828,1717505443824,-154.06866177,0.00029562,2]
[328535830,1717505443836,-500.0,0.00029589,6]
[328535832,1717505443847,-500.0,0.00029589,6]
[328535834,1717505443859,-500.0,0.00029589,6]
[328535836,1717505443869,-500.0,0.00029589,6]
[328535838,1717505443880,-500.0,0.00029589,6]
[328535841,1717505443890,-281.20007045,0.00029589,6]
[328535843,1717505443902,-500.0,0.00029589,6]
[328535845,1717505443912,-369.94150117,0.00029589,6]
[328535847,1717505443923,-5153.15,0.00029589,6]
[328535849,1717505443932,-5153.15,0.00029589,6]
[328535851,1717505443943,-5153.15,0.00029589,6]
[328535853,1717505443954,-5153.15,0.00029589,6]
[328535855,1717505443965,-5153.15,0.00029589,6]
[328535857,1717505443975,-5153.15,0.00029589,6]
[328535859,1717505443986,-5153.15,0.00029589,6]
[328535861,1717505443997,-5153.15,0.00029589,6]
[328535863,1717505444007,-5153.15,0.00029589,6]
[328535866,1717505444018,-5153.15,0.00029589,6]
[328535867,1717505444027,-153.05703102,0.00029622,2]
[328535868,1717505444037,-197.86100926,0.00029639,2]
[328535869,1717505444047,-152.68220394,0.00029646,2]
[328535870,1717505444056,-157.65408137,0.00029655,2]
[328535871,1717505444066,-154.862648,0.00029684,2]
[328535872,1717505444077,-251.87828571,0.00029698,2]
[328535873,1717505444089,-157.65408137,0.00029712,2]
[328535874,1717505444099,-153.5451216,0.00029712,2]
[328535875,1717505444108,-154.862648,0.00029724,2]
[328535876,1717505444120,-212.0,0.0002976,2]
[328535877,1717505444130,-500.0,0.0002976,2]
[328535878,1717505444141,-200.0,0.0002976,2]
[328535879,1717505444151,-154.06866177,0.0002979,2]
[328535880,1717505444162,-214.2741,0.00029792,2]
[328535882,1717505444173,-1007.98736363,0.00029831,3]
[328535884,1717505444184,-385.0,0.00029845,15]
[328535886,1717505444194,-562.0,0.00029845,15]
[328535888,1717505444205,-385.0,0.00029855,15]
[328535890,1717505444216,-562.0,0.00029855,15]
[328535892,1717505444227,-183.9,0.00029855,15]
[328535895,1717505444239,-157.65408137,0.00029856,2]
[328535897,1717505444250,-385.0,0.00029865,15]
[328535899,1717505444261,-562.0,0.00029865,15]
[328535901,1717505444271,-150.5,0.00029865,15]
[328535903,1717505444281,-12431.0,0.00029875,2]
[328535905,1717505444291,-157.65408137,0.00029881,2]
[328535907,1717505444301,-500.0,0.00029889,6]
[328535909,1717505444311,-836.44737017,0.000299,2]
[328535912,1717505444320,-2300.71212212,0.000299,3]
[328535914,1717505444331,-1039.41123618,0.000299,2]
[328535916,1717505444340,-353.49546131,0.000299,2]
[328535918,1717505444350,-14371.87288346,0.000299,2]
[328535920,1717505444360,-152.68220394,0.00029922,2]
[328535922,1717505444371,-157.65408137,0.00029927,2]
[328535924,1717505444381,-385.0,0.00029963,15]
[328535926,1717505444392,-562.0,0.00029963,15]
[328535929,1717505444402,-385.0,0.00029973,15]
[328535931,1717505444413,-562.0,0.00029973,15]
[328535933,1717505444424,-385.0,0.00029973,15]
[328535935,1717505444435,-562.0,0.00029973,15]
[328535937,1717505444445,-390.0,0.00029979,15]
[328535939,1717505444455,-565.7,0.00029979,15]
[328535941,1717505444464,-385.0,0.00029983,15]
[328535943,1717505444474,-562.0,0.00029983,15]
[328535945,1717505444484,-385.0,0.00029983,15]
[328535948,1717505444495,-562.0,0.00029983,15]
[328535950,1717505444505,-385.0,0.00029989,15]
[328535952,1717505444516,-562.0,0.00029989,15]
[328535954,1717505444528,-5153.15,0.00029997,6]
[328535956,1717505444538,-327.55896472,0.00029998,2]
[328535959,1717505444549,-1245.24151239,0.00029998,2]
[328535961,1717505444559,-155.0,0.00029998,2]
[328535963,1717505444569,-5900.0,0.00029998,10]
[328535965,1717505444579,-2223.86794373,0.00029998,7]
[328535967,1717505444588,-583.75098663,0.00029998,2]
[328535969,1717505444598,-620.00333459,0.00029998,2]
[328535971,1717505444607,-166.86126885,0.00029998,2]
[328535973,1717505444617,-1065.89322203,0.00029998,2]
[328535975,1717505444627,-644.15206775,0.00029998,2]
[328535977,1717505444638,-428.37179358,0.00029998,2]
[328535979,1717505444648,-208.9116436,0.00029998,2]
[328535981,1717505444657,-155.5707998,0.00029998,2]
[328535983,1717505444668,-1232.50469214,0.00029998,2]
[328535985,1717505444678,-209.99387941,0.00029998,2]
[328535987,1717505444688,-159.09033389,0.00029998,2]
[328535990,1717505444698,-235.97796973,0.00029998,2]
[328535992,1717505444708,-1067.18004523,0.00029998,2]
[328535994,1717505444718,-275.7718618,0.00029998,2]
[328535996,1717505444728,-157.03587597,0.00029998,2]
[328535998,1717505444738,-156.21977078,0.00029998,2]
[328536000,1717505444748,-1501.33272399,0.00029998,2]
[328536002,1717505444758,-155.0,0.00029998,2]
[328536004,1717505444768,-162.97578809,0.00029998,2]
[328536006,1717505444780,-1248.10825523,0.00029998,2]
[328536009,1717505444790,-654.83399276,0.00029998,2]
[328536011,1717505444799,-203.29324448,0.00029998,2]
[328536013,1717505444809,-166.72253563,0.00029998,2]
[328536015,1717505444820,-155.45206787,0.00029998,2]
[328536017,1717505444835,-156.27519054,0.00029998,2]
[328536019,1717505444844,-409.7134898,0.00029998,2]
[328536021,1717505444855,-2813.98016787,0.00029998,2]
[328536023,1717505444867,-4293.34952503,0.00029998,2]
[328536025,1717505444876,-241.59005071,0.00029998,2]
[328536027,1717505444886,-364.77108528,0.00029998,2]
[328536029,1717505444896,-248.92686412,0.00029998,2]
[328536032,1717505444908,-361.06846999,0.00029998,2]
[328536034,1717505444919,-4365.51239636,0.00029998,2]
[328536036,1717505444929,-179.49526094,0.00029998,2]
[328536038,1717505444939,-306.53561288,0.00029998,2]
[328536040,1717505444949,-155.0,0.00029998,2]
[328536042,1717505444960,-157.8016636,0.00029998,2]
[328536044,1717505444970,-342.71883576,0.00029998,2]
[328536046,1717505444981,-250.05519525,0.00029998,2]
[328536048,1717505444992,-407.24197213,0.00029998,2]
[328536051,1717505445003,-301.06984484,0.00029998,2]
[328536053,1717505445013,-155.62840416,0.00029998,2]
[328536055,1717505445024,-263.81575223,0.00029998,2]
[328536057,1717505445035,-155.24268003,0.00029998,2]
[328536059,1717505445046,-156.45668317,0.00029998,2]
[328536062,1717505445058,-505.69852393,0.00029998,2]
[328536064,1717505445069,-155.59310767,0.00029998,2]
[328536066,1717505445079,-238.44860959,0.00029998,2]
[328536068,1717505445091,-155.41908413,0.00029998,2]
[328536070,1717505445105,-276.57579353,0.00029998,2]
[328536072,1717505445115,-170.11514006,0.00029998,2]
[328536074,1717505445126,-27899.43688236,0.00029998,2]
[328536076,1717505445136,-1226.71869147,0.00029998,2]
[328536078,1717505445147,-156.63257496,0.00029998,2]
[328536080,1717505445158,-208.35756944,0.00029998,2]
[328536083,1717505445169,-156.38705093,0.00029998,2]
[328536085,1717505445179,-177.94404403,0.00029998,2]
[328536087,1717505445191,-500.0,0.00029998,6]
[328536089,1717505445202,-571.37149535,0.00029999,2]
[328536091,1717505445213,-401.86345424,0.00029999,2]
[328536093,1717505445224,-500.0,0.00029999,6]
[328536095,1717505445235,-500.0,0.00029999,6]
[328536097,1717505445246,-500.0,0.00029999,6]
[328536099,1717505445257,-500.0,0.00029999,6]
[328536101,1717505445268,-500.0,0.00029999,6]
[328536102,1717505445279,-500.0,0.00029999,6]
[328536104,1717505445289,-500.0,0.00029999,6]
[328536106,1717505445301,-500.0,0.00029999,6]
[328536108,1717505445311,-500.0,0.00029999,6]
[328536110,1717505445322,-500.0,0.00029999,6]
[328536112,1717505445335,-500.0,0.00029999,6]
[328536114,1717505445345,-500.0,0.00029999,6]
[328536116,1717505445355,-500.0,0.00029999,6]
[328536118,1717505445365,-500.0,0.00029999,6]
[328536120,1717505445375,-500.0,0.00029999,6]
[328536122,1717505445386,-500.0,0.00029999,6]
[328536124,1717505445396,-500.0,0.00029999,6]
[328536127,1717505445408,-500.0,0.00029999,6]
[328536129,1717505445420,-481.8072964,0.00029999,6]
[328536131,1717505445430,-5153.15,0.00029999,6]
[328536133,1717505445441,-5153.15,0.00029999,6]
[328536135,1717505445452,-5153.15,0.00029999,6]
[328536137,1717505445462,-5153.15,0.00029999,6]
[328536139,1717505445475,-5153.15,0.00029999,6]
[328536141,1717505445484,-5153.15,0.00029999,6]
[328536143,1717505445495,-5153.15,0.00029999,6]
[328536145,1717505445506,-5153.15,0.00029999,6]
[328536157,1717505445718,-5153.15,0.00029999,6]
[328536160,1717505445732,-5153.15,0.00029999,6]
[328536162,1717505445741,-5153.15,0.00029999,6]
[328536163,1717505445750,-5153.15,0.00029999,6]
[328536164,1717505445759,-5153.21800816,0.00029999,6]
[328536165,1717505445768,-678039.09316321,0.0003,2]
[328536166,1717505445816,-976.25523482,0.0003,2]
[328536167,1717505445834,-1771.54605315,0.0003,2]
[328536168,1717505445845,-1746.97315528,0.0003,2]
[328536169,1717505445856,-4841.10824082,0.0003,2]
[328536170,1717505445868,-2295.00389157,0.0003,2]
[328536171,1717505445903,-1037.60692992,0.00013999,2]
[328536172,1717505445916,-394.29996628,0.00013999,2]
[328536173,1717505445946,-353.41032198,0.00013999,2]
[328536174,1717505445958,-1598.72618894,0.00013999,2]
[328536175,1717505445967,-344.58671197,0.00029589,6]
[328536176,1717505445977,-462.47868204,0.00029998,2]
[328536177,1717505445986,-1461.93049024,0.0003,2]
[328536257,1717506346331,342.0,0.0003,90]
[328536282,1717506631897,-1458.0833515,0.00017259,2]
[328536283,1717506631939,-530.0,0.00017259,2]
[328536284,1717506631951,-531.77659901,0.00017259,2]
[328536285,1717506631978,-864.18345661,0.00017259,2]
[328536286,1717506631987,-155.0,0.00023,2]
[328536287,1717506631996,-158.46,0.00024384,2]
[328536288,1717506632005,-151.58,0.00024384,2]
[328536289,1717506632014,-705.76957178,0.0002648,2]
[328536290,1717506632024,-253.51,0.00026481,2]
[328536291,1717506632033,-548.70135201,0.00027485,4]
[328536292,1717506632042,-329.269,0.00027585,2]
[328536293,1717506632051,-1224.0,0.00027585,2]
[328536294,1717506632061,-1654.833,0.00027585,2]
[328536295,1717506632069,-442.415,0.00027585,2]
[328536296,1717506632078,-617.292,0.00027585,2]
[328536297,1717506632087,-8969.282,0.00027585,2]
[328536298,1717506632097,-164.7,0.00028345,2]
[328536299,1717506632106,-19750.32,0.00028372,2]
[328536300,1717506632118,-250.0,0.00028374,2]
[328536301,1717506632127,-250.0,0.00028436,2]
[328536302,1717506632136,-1000.0,0.00028443,2]
[328536303,1717506632145,-800.71,0.00028452,2]
[328536304,1717506632154,-171.05,0.00028666,2]
[328536305,1717506632163,-253.51,0.00028745,2]
[328536306,1717506632172,-1000.42648432,0.00029,4]
[328536307,1717506632182,-340.05,0.00029039,2]
[328536308,1717506632191,-351.87,0.00029178,2]
[328536309,1717506632201,-327.3,0.00029178,2]
[328536310,1717506632211,-841.09,0.00029178,2]
[328536311,1717506632220,-150.0,0.00029178,2]
[328536312,1717506632230,-150.0,0.00029178,2]
[328536313,1717506632239,-150.0,0.00029178,2]
[328536314,1717506632249,-154.97739495,0.00029303,2]
[328536315,1717506632258,-157.65408137,0.00029359,2]
[328536316,1717506632268,-239.23335321,0.00029385,2]
[328536317,1717506632277,-184.67027531,0.00029392,2]
[328536318,1717506632287,-154.862648,0.00029446,2]
[328536319,1717506632298,-153.54512161,0.00029449,2]
[328536321,1717506632311,-184.67027531,0.00029458,2]
[328536323,1717506632321,-155.17849519,0.00029481,2]
[328536325,1717506632330,-659.5783,0.00029489,2]
[328536326,1717506632340,-184.67027531,0.00029499,2]
[328536327,1717506632349,-198.74978827,0.00029515,2]
[328536328,1717506632359,-166.66666667,0.00029517,2]
[328536330,1717506632372,-155.24281723,0.00029524,2]
[328536332,1717506632384,-184.67027531,0.00029553,2]
[328536334,1717506632394,-166.66666667,0.00029553,2]
[328536336,1717506632404,-719.18,0.00029562,14]
[328536338,1717506632413,-152.68220394,0.00029571,2]
[328536340,1717506632423,-500.0,0.00029589,6]
[328536342,1717506632433,-500.0,0.00029589,6]
[328536343,1717506632442,-500.0,0.00029589,6]
[328536344,1717506632452,-500.0,0.00029589,6]
[328536345,1717506632462,-500.0,0.00029589,6]
[328536346,1717506632472,-500.0,0.00029589,6]
[328536347,1717506632481,-500.0,0.00029589,6]
[328536348,1717506632490,-304.97539847,0.00029589,6]
[328536349,1717506632499,-500.0,0.00029589,6]
[328536350,1717506632508,-500.0,0.00029589,6]
[328536351,1717506632518,-510.2543278,0.00029589,6]
[328536352,1717506632527,-500.0,0.00029589,6]
[328536353,1717506632536,-500.0,0.00029589,6]
[328536354,1717506632546,-500.0,0.00029589,6]
[328536355,1717506632555,-525.31535535,0.00029589,6]
[328536356,1717506632565,-500.0,0.00029589,6]
[328536357,1717506632574,-500.0,0.00029589,6]
[328536358,1717506632584,-505.22712278,0.00029589,6]
[328536359,1717506632593,-157.96729702,0.00029589,6]
[328536360,1717506632603,-500.0,0.00029589,6]
[328536361,1717506632612,-500.0,0.00029589,6]
[328536362,1717506632624,-500.0,0.00029589,6]
[328536363,1717506632632,-500.0,0.00029589,6]
[328536364,1717506632642,-500.0,0.00029589,6]
[328536365,1717506632651,-500.0,0.00029589,6]
[328536366,1717506632660,-500.0,0.00029589,6]
[328536367,1717506632669,-500.0,0.00029589,6]
[328536368,1717506632678,-500.0,0.00029589,6]
[328536369,1717506632687,-500.0,0.00029589,6]
[328536370,1717506632696,-500.0,0.00029589,6]
[328536371,1717506632705,-504.80937764,0.00029589,6]
[328536372,1717506632714,-500.0,0.00029589,6]
[328536373,1717506632723,-544.8637352,0.00029589,6]
[328536374,1717506632733,-500.0,0.00029589,6]
[328536375,1717506632742,-500.0,0.00029589,6]
[328536376,1717506632751,-500.0,0.00029589,6]
[328536377,1717506632760,-500.0,0.00029589,6]
[328536378,1717506632770,-500.0,0.00029589,6]
[328536379,1717506632779,-500.0,0.00029589,6]
[328536380,1717506632789,-500.0,0.00029589,6]
[328536381,1717506632798,-500.0,0.00029589,6]
[328536382,1717506632807,-500.0,0.00029589,6]
[328536383,1717506632817,-500.0,0.00029589,6]
[328536384,1717506632828,-500.0,0.00029589,6]
[328536385,1717506632846,-500.0,0.00029589,6]
[328536386,1717506632866,-500.0,0.00029589,6]
[328536387,1717506632875,-500.0,0.00029589,6]
[328536388,1717506632884,-500.0,0.00029589,6]
[328536389,1717506632893,-500.0,0.00029589,6]
[328536390,1717506632902,-500.0,0.00029589,6]
[328536391,1717506632912,-521.47985625,0.00029589,6]
[328536392,1717506632921,-500.0,0.00029589,6]
[328536393,1717506632930,-500.0,0.00029589,6]
[328536394,1717506632939,-500.0,0.00029589,6]
[328536395,1717506632948,-500.0,0.00029589,6]
[328536396,1717506632957,-500.0,0.00029589,6]
[328536397,1717506632967,-500.0,0.00029589,6]
[328536398,1717506632978,-500.0,0.00029589,6]
[328536399,1717506632988,-500.0,0.00029589,6]
[328536400,1717506632997,-166.93284773,0.00029601,2]
[328536401,1717506633006,-152.68220394,0.00029606,2]
[328536402,1717506633016,-184.67027531,0.00029619,2]
[328536403,1717506633026,-157.75281976,0.00029633,2]
[328536404,1717506633035,-154.68196462,0.00029695,2]
[328536405,1717506633045,-166.01645137,0.00029697,2]
[328536406,1717506633054,-864.90189,0.000297,2]
[328536407,1717506633064,-184.67027531,0.00029759,2]
[328536408,1717506633073,-500.0,0.0002976,2]
[328536409,1717506633082,-200.0,0.0002976,2]
[328536410,1717506633092,-152.68220394,0.00029773,2]
[328536411,1717506633101,-412.17126416,0.00029808,2]
[328536412,1717506633111,-152.68220394,0.00029824,2]
[328536413,1717506633122,-200.0,0.0002985,2]
[328536414,1717506633132,-452.29910185,0.00029857,2]
[328536415,1717506633141,-452.29910185,0.00029871,2]
[328536416,1717506633150,-452.29910185,0.00029886,2]
[328536417,1717506633160,-184.67027531,0.00029886,2]
[328536418,1717506633169,-318.48496367,0.00029889,2]
[328536419,1717506633178,-318.48496367,0.00029889,2]
[328536420,1717506633188,-258.80097287,0.00029889,2]
[328536421,1717506633197,-318.48496367,0.00029889,2]
[328536422,1717506633206,-318.48496367,0.00029889,2]
[328536423,1717506633215,-318.48496367,0.00029889,2]
[328536424,1717506633225,-160.03,0.0002989,2]
[328536425,1717506633235,-318.48496367,0.0002989,2]
[328536426,1717506633244,-318.48496367,0.0002989,2]
[328536427,1717506633253,-318.48496367,0.0002989,2]
[328536428,1717506633263,-318.48496367,0.0002989,2]
[328536429,1717506633272,-318.48496367,0.0002989,2]
[328536430,1717506633282,-318.48496367,0.0002989,2]
[328536431,1717506633291,-318.48496367,0.0002989,2]
[328536432,1717506633303,-318.48496367,0.0002989,2]
[328536433,1717506633314,-318.48496367,0.0002989,2]
[328536434,1717506633323,-318.48496367,0.0002989,2]
[328536435,1717506633333,-318.48496367,0.0002989,2]
[328536436,1717506633345,-318.48496367,0.0002989,2]
[328536437,1717506633354,-318.48496367,0.0002989,2]
[328536438,1717506633363,-318.48496367,0.0002989,2]
[328536439,1717506633375,-318.48496367,0.0002989,2]
[328536440,1717506633387,-318.48496367,0.0002989,2]
[328536441,1717506633398,-318.48496367,0.0002989,2]
[328536442,1717506633407,-318.48496367,0.0002989,2]
[328536443,1717506633417,-318.48496367,0.0002989,2]
[328536444,1717506633426,-318.48496367,0.0002989,2]
[328536445,1717506633436,-318.48496367,0.0002989,2]
[328536446,1717506633445,-318.48496367,0.0002989,2]
[328536447,1717506633455,-318.48496367,0.0002989,2]
[328536448,1717506633465,-318.48496367,0.0002989,2]
[328536449,1717506633475,-318.48496367,0.0002989,2]
[328536450,1717506633484,-318.48496367,0.0002989,2]
[328536451,1717506633494,-318.48496367,0.0002989,2]
[328536452,1717506633504,-318.48496367,0.0002989,2]
[328536453,1717506633513,-318.48496367,0.0002989,2]
[328536454,1717506633523,-318.48496367,0.0002989,2]
[328536455,1717506633533,-318.48496367,0.0002989,2]
[328536456,1717506633543,-318.48496367,0.0002989,2]
[328536457,1717506633553,-318.48496367,0.0002989,2]
[328536458,1717506633563,-318.48496367,0.0002989,2]
[328536459,1717506633572,-318.48496367,0.0002989,2]
[328536460,1717506633582,-318.48496367,0.0002989,2]
[328536461,1717506633591,-318.48496367,0.0002989,2]
[328536462,1717506633601,-318.48496367,0.0002989,2]
[328536463,1717506633610,-318.48496367,0.0002989,2]
[328536464,1717506633621,-318.48496367,0.0002989,2]
[328536465,1717506633630,-318.48496367,0.0002989,2]
[328536466,1717506633640,-318.48496367,0.0002989,2]
[328536467,1717506633648,-318.48496367,0.0002989,2]
[328536468,1717506633658,-318.48496367,0.0002989,2]
[328536469,1717506633668,-318.48496367,0.0002989,2]
[328536470,1717506633677,-318.48496367,0.0002989,2]
[328536471,1717506633687,-318.48496367,0.0002989,2]
[328536472,1717506633696,-318.48496367,0.0002989,2]
[328536473,1717506633706,-318.48496367,0.0002989,2]
[328536474,1717506633715,-318.48496367,0.0002989,2]
[328536475,1717506633724,-318.48496367,0.0002989,2]
[328536476,1717506633733,-318.48496367,0.0002989,2]
[328536477,1717506633742,-318.48496367,0.0002989,2]
[328536478,1717506633751,-318.48496367,0.0002989,2]
[328536479,1717506633760,-318.48496367,0.0002989,2]
[328536480,1717506633769,-318.48496367,0.0002989,2]
[328536481,1717506633778,-318.48496367,0.0002989,2]
[328536482,1717506633787,-318.48496367,0.0002989,2]
[328536483,1717506633796,-318.48496367,0.0002989,2]
[328536484,1717506633804,-318.48496367,0.0002989,2]
[328536485,1717506633813,-318.48496367,0.0002989,2]
[328536486,1717506633822,-318.48496367,0.0002989,2]
[328536487,1717506633832,-318.48496367,0.0002989,2]
[328536488,1717506633841,-318.48496367,0.0002989,2]
[328536489,1717506633849,-318.48496367,0.0002989,2]
[328536490,1717506633858,-318.48496367,0.0002989,2]
[328536491,1717506633867,-318.48496367,0.0002989,2]